bitfinex/quotes_SOLUSD_20250701
["timestamp","ask_amount","ask_price","bid_price","bid_amount"]
[1751381734858,5.42553416,147.36,147.31,5.42553416]
[1751381735854,5.42553416,147.36,147.3,18.84964886]
[1751381735855,5.42553416,147.36,147.32,5.42553416]
[1751381736155,5.42553416,147.35,147.31,5.42553416]
[1751381736547,5.42553416,147.33,147.3,26.2]
[1751381737267,5.42553416,147.32,147.3,0.2]
[1751381738236,5.42553416,147.31,147.3,0.2]
[1751381741838,17.3866,147.32,147.3,0.2]
[1751381742043,5.42553416,147.31,147.3,0.2]
[1751381743240,11.2,147.3,147.26,0.2]
[1751381743440,5.42553416,147.27,147.26,0.2]
[1751381743862,11.2,147.29,147.26,0.2]
[1751381744042,16.62553416,147.29,147.26,0.2]
[1751381744249,5.42553416,147.28,147.26,0.2]
[1751381745566,5.42553416,147.29,147.26,0.2]
[1751381745769,5.42553416,147.28,147.26,0.2]
[1751381748966,6.1866,147.32,147.26,5.62553416]
[1751381749169,12.8406,147.33,147.28,5.42553416]
[1751381749352,12.8406,147.33,147.29,5.42553416]
[1751381749353,16.62553416,147.33,147.29,5.42553416]
[1751381749558,5.42553416,147.33,147.29,5.42553416]
[1751381749753,0.1,147.34,147.32,5.42553416]
[1751381750154,0.1,147.34,147.33,5.42553416]
[1751381750464,0.1,147.34,147.33,24.07518302]
[1751381752171,0.1,147.34,147.33,27.94699618]
[1751381754852,0.1,147.34,147.33,18.64964886]
[1751381755055,0.1,147.34,147.33,27.94699618]
[1751381762375,0.1,147.34,147.33,28.37348089]
[1751381762556,0.1,147.34,147.33,38.34957659]
[1751381764379,0.1,147.34,147.33,45.75488195]
[1751381764567,0.1,147.34,147.33,28.08915775]
[1751381765464,0.1,147.34,147.33,27.94699618]
[1751381765672,0.1,147.34,147.31,18.64964886]
[1751381765862,0.1,147.34,147.32,9.29734732]
[1751381766057,9.29734732,147.36,147.32,9.29734732]
[1751381766375,1.6864,147.38,147.29,27.94699618]
[1751381766376,9.29734732,147.33,147.29,27.94699618]
[1751381766550,0.1,147.38,147.32,0.14216157]
[1751381766756,9.39734732,147.38,147.34,9.29734732]
[1751381767254,0.1,147.38,147.35,9.29734732]
[1751381767861,0.1,147.38,147.36,9.29734732]
[1751381768063,0.1,147.38,147.37,9.29734732]
[1751381768257,0.1,147.38,147.32,21.07950489]
[1751381768258,0.1,147.38,147.36,9.29734732]
[1751381768477,0.1,147.38,147.37,27.94699618]
[1751381769379,0.1,147.38,147.37,9.29734732]
[1751381769573,0.1,147.38,147.36,27.94699618]
[1751381769775,0.1,147.38,147.37,9.43950889]
[1751381769972,0.1,147.38,147.37,9.29734732]
[1751381770355,0.1,147.38,147.37,9.43950889]
[1751381771258,0.1,147.38,147.37,9.29734732]
[1751381772056,0.1,147.38,147.37,5.42261234]
[1751381772869,0.1,147.38,147.36,31.42261234]
[1751381773488,5.52261234,147.38,147.34,24.0722612]
[1751381773681,5.52261234,147.38,147.34,5.42261234]
[1751381774576,0.1,147.38,147.34,5.42261234]
[1751381774885,5.52261234,147.38,147.34,5.42261234]
[1751381775075,5.52261234,147.38,147.33,26.0]
[1751381775076,0.1,147.38,147.33,26.0]
[1751381775277,5.52261234,147.38,147.34,5.42261234]
[1751381776458,5.52261234,147.38,147.33,31.42261234]
[1751381777058,5.52261234,147.38,147.34,5.42261234]
[1751381777376,5.52261234,147.38,147.34,24.0722612]
[1751381777579,0.1,147.38,147.34,18.64964886]
[1751381777778,0.1,147.38,147.35,5.42261234]
[1751381778570,0.1,147.38,147.36,5.42261234]
[1751381778986,0.1,147.38,147.37,5.42261234]
[1751381780083,0.1,147.38,147.37,24.0722612]
[1751381782791,0.1,147.38,147.37,24.21442277]
[1751381782990,0.1,147.38,147.37,25.17731006]
[1751381783769,0.1,147.38,147.37,54.75731006]
[1751381784588,0.1,147.4,147.39,18.64964886]
[1751381784799,0.1,147.43,147.42,44.64964886]
[1751381784968,0.2,147.46,147.45,26.14216157]
[1751381785168,0.2,147.46,147.45,50.21442277]
[1751381785386,0.2,147.46,147.45,50.49874591]
[1751381788675,6.2267,147.52,147.46,19.07613357]
[1751381788893,6.2267,147.52,147.49,5.42261234]
[1751381789395,6.2267,147.52,147.46,31.42261234]
[1751381789577,5.42261234,147.5,147.46,26.0]
[1751381789779,5.42261234,147.5,147.46,31.42261234]
[1751381790002,5.42261234,147.48,147.43,8.3]
[1751381790171,6.2267,147.52,147.44,18.64964886]
[1751381790172,5.42261234,147.47,147.44,18.64964886]
[1751381790490,5.42261234,147.48,147.44,5.42261234]
[1751381790694,5.42261234,147.5,147.45,24.0722612]
[1751381790880,16.62261234,147.51,147.47,5.42261234]
[1751381791200,5.42261234,147.51,147.47,5.42261234]
[1751381791398,11.64931234,147.52,147.47,26.0]
[1751381791610,6.2267,147.52,147.48,5.42261234]
[1751381791809,11.64931234,147.52,147.48,5.42261234]
[1751381792509,5.42261234,147.5,147.47,26.0]
[1751381792710,0.2,147.52,147.49,5.42261234]
[1751381793003,0.2,147.52,147.5,5.42261234]
[1751381793174,0.2,147.52,147.49,5.42261234]
[1751381793378,0.2,147.52,147.5,5.42261234]
[1751381794799,0.2,147.52,147.48,18.79181043]
[1751381794800,0.2,147.52,147.49,5.42261234]
[1751381797781,0.2,147.52,147.48,24.0722612]
[1751381798082,0.2,147.52,147.49,5.42261234]
[1751381800309,0.2,147.52,147.5,5.42261234]
[1751381800690,5.62261234,147.52,147.48,5.42261234]
[1751381800891,5.42261234,147.51,147.47,31.42261234]
[1751381801090,6.4408,147.52,147.47,31.42261234]
[1751381801309,6.4408,147.52,147.49,5.42261234]
[1751381801616,0.2,147.52,147.5,5.42261234]
[1751381801805,0.2,147.52,147.49,5.42261234]
[1751381802283,5.62261234,147.52,147.48,24.0722612]
[1751381802706,0.2,147.52,147.49,5.42261234]
[1751381803289,0.2,147.52,147.48,24.0722612]
[1751381803812,0.2,147.52,147.49,5.42261234]
[1751381804040,5.62261234,147.52,147.48,24.0722612]
[1751381804204,0.2,147.52,147.48,24.0722612]
[1751381805514,0.2,147.52,147.48,18.64964886]
[1751381805701,5.62261234,147.52,147.48,24.0722612]
[1751381806014,5.42261234,147.49,147.44,18.64964886]
[1751381806203,5.42261234,147.47,147.43,8.3]
[1751381806389,5.42261234,147.48,147.43,8.3]
[1751381806706,5.42261234,147.5,147.46,5.42261234]
[1751381807012,0.2,147.52,147.49,18.64964886]
[1751381807187,0.2,147.52,147.49,24.0722612]
[1751381807502,0.2,147.52,147.5,5.42261234]
[1751381807709,0.2,147.52,147.49,5.42261234]
[1751381808484,0.2,147.52,147.51,5.42261234]
[1751381809289,0.2,147.52,147.49,18.79181043]
[1751381809486,0.2,147.52,147.51,18.64964886]
[1751381809708,0.2,147.52,147.51,19.75405371]
[1751381809906,0.2,147.52,147.51,24.21442277]
[1751381810410,0.2,147.52,147.51,25.17666605]
[1751381811012,0.2,147.52,147.51,24.89234291]
[1751381811200,0.2,147.52,147.51,24.21442277]
[1751381811392,0.2,147.52,147.51,18.79181043]
[1751381811708,0.2,147.52,147.51,24.21442277]
[1751381812010,0.2,147.52,147.51,24.0722612]
[1751381812208,0.2,147.52,147.51,24.21442277]
[1751381819113,0.2,147.52,147.51,24.49874591]
[1751381819513,1.4380331,147.54,147.53,18.64964886]
[1751381819717,1.4380331,147.54,147.53,53.5122612]
[1751381821639,1.4380331,147.54,147.53,53.93874591]
[1751381822133,1.4380331,147.54,147.53,53.65442277]
[1751381822630,1.4380331,147.54,147.5,0.6779661]
[1751381822927,5.42261234,147.51,147.46,5.62261234]
[1751381823114,5.42261234,147.5,147.46,5.62261234]
[1751381823309,5.42261234,147.51,147.47,5.42261234]
[1751381823518,5.42261234,147.51,147.48,18.64964886]
[1751381824123,5.42261234,147.52,147.48,5.42261234]
[1751381824334,1.4380331,147.54,147.5,24.0722612]
[1751381824510,5.42261234,147.53,147.5,18.64964886]
[1751381825628,6.86064544,147.54,147.5,24.0722612]
[1751381826124,1.4380331,147.54,147.5,24.0722612]
[1751381826425,6.86064544,147.54,147.5,24.0722612]
[1751381827029,1.4380331,147.54,147.5,24.0722612]
[1751381827328,1.4380331,147.54,147.52,5.42261234]
[1751381828327,1.4380331,147.54,147.52,18.64964886]
[1751381828632,1.4380331,147.54,147.51,5.56477391]
[1751381828818,1.4380331,147.54,147.52,24.0722612]
[1751381830321,1.4380331,147.54,147.5,45.07613357]
[1751381830833,1.4380331,147.54,147.52,5.42261234]
[1751381831212,1.4380331,147.54,147.52,18.79181043]
[1751381831418,1.4380331,147.54,147.52,5.56477391]
[1751381832216,1.4380331,147.54,147.52,0.14216157]
[1751381832415,1.5380331,147.54,147.52,5.56477391]
[1751381833735,1.5380331,147.54,147.51,24.0722612]
[1751381833933,1.5380331,147.54,147.51,18.64964886]
[1751381834233,1.5380331,147.54,147.52,0.14216157]
[1751381834426,1.5380331,147.54,147.51,18.64964886]
[1751381834636,1.5380331,147.54,147.51,24.0722612]
[1751381834932,1.5380331,147.54,147.52,5.42261234]
[1751381835424,1.5380331,147.54,147.51,24.0722612]
[1751381835824,1.5380331,147.54,147.52,5.42261234]
[1751381836331,1.5380331,147.54,147.51,18.64964886]
[1751381836538,1.5380331,147.54,147.52,5.42261234]
[1751381837331,1.5380331,147.54,147.52,5.56477391]
[1751381837714,1.5380331,147.54,147.52,0.14216157]
[1751381838335,1.5380331,147.54,147.51,18.64964886]
[1751381838544,1.5380331,147.54,147.51,24.0722612]
[1751381838836,1.5380331,147.54,147.51,18.64964886]
[1751381839047,6.96064544,147.54,147.51,18.64964886]
[1751381839424,1.5380331,147.54,147.51,18.64964886]
[1751381840027,6.96064544,147.54,147.51,18.64964886]
[1751381840744,5.42261234,147.52,147.48,24.0722612]
[1751381841120,5.42261234,147.51,147.48,18.64964886]
[1751381841318,5.42261234,147.51,147.47,18.64964886]
[1751381841589,5.42261234,147.51,147.49,18.64964886]
[1751381841834,5.42261234,147.52,147.49,18.64964886]
[1751381842533,5.42261234,147.51,147.49,18.64964886]
[1751381842834,5.42261234,147.52,147.49,18.64964886]
[1751381843021,5.42261234,147.51,147.49,18.64964886]
[1751381843334,5.42261234,147.5,147.47,18.64964886]
[1751381844623,8.0793,147.53,147.47,18.64964886]
[1751381844816,5.42261234,147.5,147.47,18.64964886]
[1751381845035,5.42261234,147.51,147.47,18.64964886]
[1751381845430,5.42261234,147.52,147.48,18.64964886]
[1751381845643,8.0793,147.53,147.48,18.64964886]
[1751381845937,13.50191234,147.53,147.49,5.42261234]
[1751381846232,5.42261234,147.51,147.48,18.64964886]
[1751381846440,5.42261234,147.52,147.48,18.64964886]
[1751381846739,5.42261234,147.52,147.48,24.0722612]
[1751381847113,8.0793,147.53,147.48,24.0722612]
[1751381847114,13.50191234,147.53,147.48,24.0722612]
[1751381847742,5.42261234,147.52,147.48,24.0722612]
[1751381848422,8.0793,147.53,147.48,24.0722612]
[1751381848617,13.50191234,147.53,147.48,18.64964886]
[1751381848829,5.42261234,147.52,147.48,18.64964886]
[1751381849062,5.42261234,147.51,147.48,18.64964886]
[1751381851530,5.42261234,147.5,147.48,18.64964886]
[1751381852434,8.0793,147.53,147.48,18.64964886]
[1751381852624,5.42261234,147.51,147.48,18.64964886]
[1751381854729,5.42261234,147.49,147.48,18.64964886]
[1751381854927,5.42261234,147.5,147.48,18.64964886]
[1751381855138,5.42261234,147.5,147.47,0.2]
[1751381855329,12.7380331,147.54,147.48,44.64964886]
[1751381855541,1.5380331,147.54,147.52,24.0722612]
[1751381855724,6.96064544,147.54,147.5,5.42261234]
[1751381856044,1.5380331,147.54,147.52,18.64964886]
[1751381856344,1.5380331,147.54,147.52,24.0722612]
[1751381857044,1.5380331,147.54,147.53,24.0722612]
[1751381857228,1.5380331,147.54,147.53,18.64964886]
[1751381858962,1.5380331,147.54,147.53,24.0722612]
[1751381861037,1.5380331,147.54,147.53,18.64964886]
[1751381864163,1.5380331,147.54,147.53,24.0722612]
[1751381865058,1.5380331,147.54,147.53,18.64964886]
[1751381868543,1.5380331,147.54,147.53,24.0722612]
[1751381869553,1.5380331,147.54,147.53,24.21442277]
[1751381870244,1.5380331,147.54,147.53,18.79181043]
[1751381870449,1.5380331,147.54,147.53,24.21442277]
[1751381875341,1.5380331,147.54,147.53,18.79181043]
[1751381875660,1.5380331,147.54,147.53,24.49874591]
[1751381883561,1.5380331,147.54,147.53,18.79181043]
[1751381883966,1.5380331,147.54,147.53,24.21442277]
[1751381885661,1.5380331,147.54,147.53,50.21442277]
[1751381885865,1.5380331,147.54,147.53,18.64964886]
[1751381886362,1.5380331,147.54,147.53,50.0722612]
[1751381886967,1.5380331,147.54,147.53,24.0722612]
[1751381887164,1.5380331,147.54,147.53,18.64964886]
[1751381888277,1.5380331,147.54,147.53,44.64964886]
[1751381888470,1.5380331,147.54,147.53,18.64964886]
[1751381890257,6.96064544,147.54,147.52,0.2]
[1751381890683,1.5380331,147.54,147.52,0.2]
[1751381891358,6.96064544,147.54,147.52,0.2]
[1751381891682,1.5380331,147.54,147.52,0.2]
[1751381892177,6.96064544,147.54,147.52,0.2]
[1751381892677,1.5380331,147.54,147.52,0.2]
[1751381894480,1.5380331,147.54,147.53,18.64964886]
[1751381894785,1.5380331,147.54,147.53,5.42261234]
[1751381894988,1.5380331,147.54,147.52,5.62261234]
[1751381895477,1.5380331,147.54,147.52,0.2]
[1751381897983,1.5380331,147.54,147.52,5.62261234]
[1751381898716,1.5380331,147.54,147.52,0.2]
[1751381898908,1.5380331,147.54,147.52,5.62261234]
[1751381899112,1.5380331,147.54,147.52,0.2]
[1751381900080,6.96064544,147.54,147.52,0.2]
[1751381901407,5.42261234,147.53,147.52,0.2]
[1751381904282,12.7380331,147.54,147.52,0.2]
[1751381904489,5.42261234,147.53,147.52,0.2]
[1751381906524,27.6131,147.49,147.47,0.2]
[1751381906819,12.00161234,147.48,147.47,0.2]
[1751381909699,12.00161234,147.48,147.46,0.2]
[1751381909891,5.42261234,147.47,147.46,0.2]
[1751381910214,5.42261234,147.47,147.42,0.2]
[1751381910408,5.42261234,147.43,147.42,0.2]
[1751381913994,6.579,147.48,147.42,0.2]
[1751381914310,5.42261234,147.43,147.42,0.2]
[1751381914529,11.2,147.47,147.42,0.2]
[1751381914715,11.2,147.47,147.42,5.62261234]
[1751381914891,5.42261234,147.46,147.43,18.64964886]
[1751381916905,5.42261234,147.46,147.42,0.2]
[1751381917208,5.42261234,147.46,147.43,18.64964886]
[1751381918317,5.42261234,147.45,147.42,0.2]
[1751381918621,5.42261234,147.44,147.42,0.2]
[1751381918915,5.42261234,147.46,147.43,18.64964886]
[1751381919122,11.2,147.47,147.42,5.62261234]
[1751381919123,5.42261234,147.45,147.42,0.2]
[1751381919800,5.42261234,147.44,147.42,0.2]
[1751381919999,5.42261234,147.43,147.42,0.2]
[1751381924196,10.84522468,147.43,147.42,0.2]
[1751381924798,10.98738625,147.43,147.42,0.2]
[1751381924998,26.0,147.39,147.36,0.2]
[1751381925300,5.42261234,147.37,147.36,0.2]
[1751381929505,37.2,147.38,147.36,0.2]
[1751381929717,5.42261234,147.37,147.36,0.2]
[1751381930827,42.62261234,147.38,147.36,0.2]
[1751381931655,5.42261234,147.37,147.36,0.2]
[1751381938432,42.62261234,147.38,147.36,0.2]
[1751381940232,5.42261234,147.37,147.36,0.2]
[1751381944743,42.62261234,147.38,147.36,0.2]
[1751381944920,5.42261234,147.37,147.36,0.2]
[1751381947745,37.2,147.38,147.36,0.2]
[1751381948047,5.42261234,147.37,147.36,0.2]
[1751381948540,42.62261234,147.38,147.36,0.2]
[1751381949327,37.2,147.38,147.36,0.2]
[1751381949545,42.62261234,147.38,147.36,0.2]
[1751381949746,11.2,147.41,147.36,0.2]
[1751381950045,11.2,147.41,147.37,5.42261234]
[1751381950245,16.62261234,147.41,147.37,5.42261234]
[1751381951144,11.2,147.41,147.37,5.42261234]
[1751381951344,16.62261234,147.41,147.37,5.42261234]
[1751381951949,11.2,147.41,147.37,5.42261234]
[1751381952146,11.2,147.41,147.38,5.42261234]
[1751381953334,0.1,147.46,147.41,18.64964886]
[1751381953553,5.52261234,147.46,147.42,5.42261234]
[1751381953754,5.42261234,147.45,147.41,5.42261234]
[1751381954638,5.52261234,147.46,147.41,5.42261234]
[1751381954842,0.1,147.46,147.41,5.42261234]
[1751381955039,5.52261234,147.46,147.41,5.42261234]
[1751381955653,5.42261234,147.45,147.4,24.0722612]
[1751381956258,5.52261234,147.46,147.41,5.42261234]
[1751381956660,0.1,147.46,147.42,5.42261234]
[1751381957157,0.1,147.46,147.43,18.64964886]
[1751381957460,0.1,147.46,147.45,5.42261234]
[1751381957643,0.1,147.46,147.45,24.0722612]
[1751381958237,0.1,147.46,147.45,18.64964886]
[1751381959644,0.1,147.46,147.42,18.64964886]
[1751381959844,0.1,147.46,147.43,5.42261234]
[1751381961273,0.1,147.46,147.42,24.0722612]
[1751381961441,5.42261234,147.45,147.41,18.64964886]
[1751381961841,5.42261234,147.45,147.41,24.0722612]
[1751381962036,5.52261234,147.46,147.41,24.0722612]
[1751381964456,5.42261234,147.45,147.41,24.0722612]
[1751381966273,0.1,147.46,147.42,5.42261234]
[1751381966580,5.52261234,147.46,147.42,5.42261234]
[1751381967080,5.42261234,147.45,147.41,24.0722612]
[1751381967881,5.52261234,147.46,147.41,24.0722612]
[1751381968049,5.52261234,147.46,147.42,5.42261234]
[1751381968881,5.42261234,147.45,147.41,24.0722612]
[1751381969371,5.42261234,147.44,147.4,5.62261234]
[1751381969755,5.42261234,147.43,147.4,0.2]
[1751381970154,5.42261234,147.42,147.4,0.2]
[1751381970975,5.42261234,147.43,147.4,0.2]
[1751381972272,5.52261234,147.46,147.42,5.42261234]
[1751381972470,5.52261234,147.46,147.41,5.42261234]
[1751381972985,5.42261234,147.45,147.41,5.42261234]
[1751381973182,0.1,147.46,147.41,5.42261234]
[1751381973385,5.42261234,147.45,147.41,5.42261234]
[1751381974662,5.52261234,147.46,147.41,5.42261234]
[1751381976993,0.1,147.46,147.43,5.42261234]
[1751381977491,0.1,147.46,147.45,5.42261234]
[1751381980486,0.1,147.46,147.45,24.0722612]
[1751381983292,0.1,147.46,147.45,27.8825926]
[1751381984364,0.1,147.46,147.45,34.87375237]
[1751381984562,0.1,147.46,147.45,29.5137926]
[1751381985380,0.1,147.46,147.45,24.09118026]
[1751381985580,0.1,147.46,147.45,25.7034612]
[1751381985783,0.1,147.46,147.45,24.0722612]
[1751381988472,0.1,147.46,147.45,24.49874591]
[1751381988707,0.1,147.46,147.45,19.07613357]
[1751381989001,0.1,147.46,147.45,24.49874591]
[1751381989295,0.1,147.52,147.5,0.14216157]
[1751381989595,0.1,147.52,147.51,5.42261234]
[1751381991785,0.1,147.52,147.51,24.21442277]
[1751381993180,0.1,147.52,147.51,24.0722612]
[1751381995880,0.1,147.52,147.51,18.64964886]
[1751381996079,0.1,147.52,147.5,5.42261234]
[1751381996791,0.1,147.52,147.48,18.79181043]
[1751381996996,0.1,147.52,147.5,5.42261234]
[1751381997195,0.1,147.52,147.51,5.42261234]
[1751381998077,0.1,147.52,147.5,5.42261234]
[1751381998777,0.1,147.52,147.48,18.79181043]
[1751381998978,0.1,147.52,147.5,5.42261234]
[1751381999902,0.1,147.52,147.48,18.79181043]
[1751382000096,0.1,147.52,147.5,5.42261234]
[1751382000401,0.1,147.52,147.47,18.79181043]
[1751382000697,5.52261234,147.52,147.47,24.0722612]
[1751382000887,5.42261234,147.5,147.46,5.42261234]
[1751382001283,5.42261234,147.49,147.45,18.64964886]
[1751382001595,5.42261234,147.49,147.44,5.42261234]
[1751382001796,5.42261234,147.49,147.45,5.42261234]
[1751382002178,5.42261234,147.48,147.43,18.84964886]
[1751382002377,5.42261234,147.44,147.43,0.2]
[1751382003178,6.2861,147.48,147.43,0.2]
[1751382003179,5.42261234,147.45,147.43,0.2]
[1751382003380,5.42261234,147.44,147.43,0.2]
[1751382004701,33.9,147.46,147.43,0.2]
[1751382005004,5.42261234,147.45,147.43,0.2]
[1751382005180,5.42261234,147.44,147.43,0.2]
[1751382005577,5.42261234,147.45,147.43,0.2]
[1751382006000,7.9,147.46,147.43,0.2]
[1751382006190,13.32261234,147.46,147.43,0.2]
[1751382006505,5.42261234,147.45,147.43,0.2]
[1751382006889,5.42261234,147.44,147.43,0.2]
[1751382007811,9.29563961,147.44,147.43,0.2]
[1751382007998,26.0,147.44,147.43,0.2]
[1751382008299,35.29563961,147.44,147.43,0.2]
[1751382008707,7.9,147.46,147.43,0.2]
[1751382008901,17.19563961,147.46,147.43,0.2]
[1751382009086,9.29563961,147.45,147.43,0.2]
[1751382009805,9.29563961,147.44,147.43,0.2]
[1751382010411,9.29563961,147.45,147.43,0.2]
[1751382011023,9.29563961,147.44,147.43,0.2]
[1751382011832,9.29563961,147.45,147.43,0.2]
[1751382011998,9.29563961,147.44,147.43,0.2]
[1751382012500,9.29563961,147.45,147.43,0.2]
[1751382012700,9.29563961,147.44,147.43,0.2]
[1751382013324,9.29563961,147.45,147.43,0.2]
[1751382014611,9.29563961,147.44,147.43,0.2]
[1751382014809,19.1,147.46,147.43,0.2]
[1751382015117,28.39563961,147.46,147.43,0.2]
[1751382015420,9.29563961,147.45,147.43,0.2]
[1751382015620,9.29563961,147.44,147.43,0.2]
[1751382015930,35.29563961,147.44,147.43,0.2]
[1751382016133,20.24834079,147.44,147.43,0.2]
[1751382016319,32.4823,147.43,147.4,0.2]
[1751382016630,20.49563961,147.42,147.4,0.2]
[1751382016821,9.29563961,147.41,147.4,0.2]
[1751382017398,11.2,147.42,147.4,0.2]
[1751382017604,9.29563961,147.41,147.4,0.2]
[1751382018605,11.2,147.42,147.4,0.2]
[1751382018823,20.49563961,147.42,147.4,0.2]
[1751382019130,11.2,147.42,147.4,0.2]
[1751382019732,20.49563961,147.42,147.4,0.2]
[1751382020024,11.2,147.42,147.4,0.2]
[1751382020540,9.29563961,147.45,147.41,9.29563961]
[1751382020698,0.1,147.46,147.44,9.29563961]
[1751382021045,0.1,147.46,147.4,18.99181043]
[1751382021212,9.39563961,147.46,147.42,9.29563961]
[1751382021413,0.1,147.46,147.43,9.29563961]
[1751382021619,9.39563961,147.46,147.42,9.29563961]
[1751382021816,0.1,147.46,147.42,9.29563961]
[1751382022703,9.39563961,147.46,147.42,9.29563961]
[1751382023226,9.39563961,147.46,147.4,18.84964886]
[1751382023436,0.1,147.46,147.43,9.29563961]
[1751382024607,9.39563961,147.46,147.42,9.29563961]
[1751382025436,0.1,147.46,147.43,9.29563961]
[1751382025603,0.1,147.46,147.44,9.29563961]
[1751382026108,9.29563961,147.45,147.4,18.84964886]
[1751382026301,9.29563961,147.44,147.4,28.14528847]
[1751382027200,9.29563961,147.44,147.4,18.84964886]
[1751382027400,9.29563961,147.43,147.4,18.84964886]
[1751382027615,9.29563961,147.44,147.4,18.84964886]
[1751382028227,9.29563961,147.42,147.4,0.2]
[1751382028903,11.2,147.45,147.4,0.2]
[1751382029098,9.29563961,147.44,147.4,9.49563961]
[1751382029524,11.2,147.45,147.4,9.49563961]
[1751382029525,11.2,147.45,147.4,0.2]
[1751382029726,11.2,147.45,147.4,9.49563961]
[1751382029917,20.49563961,147.45,147.41,9.29563961]
[1751382030710,11.2,147.45,147.42,9.29563961]
[1751382030920,0.1,147.46,147.43,9.29563961]
[1751382031430,0.1,147.46,147.42,18.64964886]
[1751382031611,9.39563961,147.46,147.42,27.94528847]
[1751382031803,0.1,147.46,147.42,27.94528847]
[1751382032526,9.39563961,147.46,147.42,27.94528847]
[1751382032828,9.39563961,147.46,147.42,9.29563961]
[1751382033027,0.1,147.46,147.42,9.29563961]
[1751382033533,9.39563961,147.46,147.42,9.29563961]
[1751382034534,9.39563961,147.46,147.4,0.2]
[1751382034735,9.39563961,147.46,147.41,9.29563961]
[1751382035036,9.29563961,147.45,147.4,0.2]
[1751382035213,9.29563961,147.45,147.41,9.29563961]
[1751382035414,9.39563961,147.46,147.42,9.29563961]
[1751382035824,0.1,147.46,147.43,9.29563961]
[1751382036028,0.1,147.46,147.45,27.94528847]
[1751382036246,0.1,147.46,147.45,28.08745004]
[1751382037533,0.1,147.46,147.45,28.37177318]
[1751382037746,0.1,147.5,147.49,18.64964886]
[1751382037918,0.1,147.5,147.49,28.37177318]
[1751382038117,0.1,147.5,147.49,30.58628524]
[1751382038425,0.1,147.5,147.49,29.90827318]
[1751382039518,0.1,147.5,147.49,18.64964886]
[1751382040109,0.1,147.5,147.49,27.94528847]
[1751382040618,0.1,147.5,147.49,18.64964886]
[1751382040816,0.1,147.5,147.49,27.94528847]
[1751382041227,0.1,147.5,147.47,0.14216157]
[1751382041430,0.1,147.5,147.49,9.29563961]
[1751382041628,0.1,147.5,147.48,9.29563961]
[1751382041842,0.1,147.5,147.48,18.64964886]
[1751382042135,0.1,147.5,147.47,9.29563961]
[1751382042431,9.29563961,147.49,147.45,9.29563961]
[1751382042634,9.29563961,147.49,147.45,27.94528847]
[1751382042940,9.29563961,147.49,147.45,53.94528847]
[1751382043142,0.1,147.5,147.42,27.94528847]
[1751382043143,9.29563961,147.46,147.42,27.94528847]
[1751382043330,9.29563961,147.47,147.4,0.2]
[1751382043529,9.29563961,147.47,147.43,9.29563961]
[1751382043837,26.0,147.49,147.43,9.29563961]
[1751382044014,26.0,147.49,147.45,9.29563961]
[1751382044015,9.29563961,147.49,147.45,9.29563961]
[1751382044215,9.29563961,147.49,147.45,18.64964886]
[1751382044416,0.1,147.5,147.45,27.94528847]
[1751382044640,9.39563961,147.5,147.45,27.94528847]
[1751382045021,0.1,147.5,147.47,9.29563961]
[1751382046446,9.39563961,147.5,147.46,18.64964886]
[1751382046620,9.29563961,147.47,147.4,0.2]
[1751382046820,9.29563961,147.45,147.41,9.29563961]
[1751382047135,9.29563961,147.45,147.41,35.29563961]
[1751382047528,26.1,147.5,147.4,0.2]
[1751382047529,9.29563961,147.43,147.4,0.2]
[1751382047846,9.29563961,147.45,147.4,28.14528847]
[1751382048048,9.29563961,147.46,147.42,27.94528847]
[1751382048545,9.29563961,147.46,147.42,9.29563961]
[1751382048745,26.0,147.48,147.42,9.29563961]
[1751382048926,9.29563961,147.46,147.42,9.29563961]
[1751382049423,9.29563961,147.47,147.43,9.29563961]
[1751382050044,37.2,147.49,147.43,9.29563961]
[1751382050045,9.29563961,147.48,147.43,9.29563961]
[1751382050236,9.29563961,147.48,147.44,9.29563961]
[1751382050544,0.1,147.5,147.44,9.29563961]
[1751382050545,9.29563961,147.49,147.44,9.29563961]
[1751382051154,0.1,147.46,147.44,9.29563961]
[1751382051533,0.1,147.46,147.45,27.94528847]